fUSD/lending_fUSD_20240412
["ID","MTS","AMOUNT","RATE_DAILY","PERIOD"]
[322294405,1712939478404,-500.0,0.00049041,31]
[322294406,1712939478413,-2317.31,0.00049041,31]
[322294407,1712939478423,-566.69,0.00049041,31]
[322294408,1712939478432,-550.45,0.00049041,31]
[322294409,1712939478441,-1028.71,0.00049041,31]
[322294410,1712939478450,-500.0,0.00049041,31]
[322294411,1712939478460,-1045.05,0.00049041,31]
[322294412,1712939478470,-500.0,0.00049041,31]
[322294413,1712939478479,-1536.84,0.00049041,31]
[322294414,1712939478491,-500.0,0.00049041,31]
[322294415,1712939478500,-500.0,0.00049041,31]
[322294416,1712939478510,-500.0,0.00049041,31]
[322294417,1712939478521,-1599.82,0.00049041,31]
[322294418,1712939478535,-886.03,0.00049041,31]
[322294419,1712939478546,-500.0,0.00049041,31]
[322294420,1712939478556,-593.38,0.00049041,21]
[322294421,1712939478566,-868.49,0.00049041,31]
[322294422,1712939478577,-995.51,0.00049041,31]
[322294423,1712939478588,-500.0,0.00049041,31]
[322294424,1712939478598,-753.01,0.00049041,31]
[322294425,1712939478607,-660.73,0.00049041,31]
[322294426,1712939478619,-500.0,0.00049041,31]
[322294427,1712939478628,-500.0,0.00049041,31]
[322294428,1712939478639,-2246.9,0.00049041,31]
[322294429,1712939478648,-620.0,0.0004905,30]
[322294430,1712939478657,-297.0,0.0004905,30]
[322294431,1712939478666,-427.0,0.0004905,30]
[322294432,1712939478675,-8000.0,0.00049064,120]
[322294433,1712939478685,-150.0,0.00049069,30]
[322294434,1712939478695,-150.0,0.00049101,30]
[322294435,1712939478705,-150.0,0.00049117,30]
[322294436,1712939478714,-150.0,0.00049122,60]
[322294437,1712939478723,-150.0,0.00049126,30]
[322294438,1712939478732,-150.0,0.00049133,30]
[322294439,1712939478743,-8000.0,0.0004915,120]
[322294440,1712939478752,-150.0,0.00049166,30]
[322294441,1712939478762,-150.0,0.00049198,30]
[322294442,1712939478771,-150.0,0.00049198,30]
[322294443,1712939478780,-224.23333333,0.00049205,120]
[322294444,1712939478789,-150.0,0.0004923,30]
[322294445,1712939478799,-8000.0,0.00049236,120]
[322294446,1712939478808,-150.0,0.00049251,30]
[322294447,1712939478817,-150.0,0.00049262,30]
[322294448,1712939478826,-150.0,0.00049278,30]
[322294449,1712939478835,-150.0,0.00049294,30]
[322294450,1712939478845,-551.210041,0.00049315,30]
[322294451,1712939478855,-666.0,0.00049315,2]
[322294452,1712939478865,-500.0,0.00049315,120]
[322294453,1712939478874,-500.0,0.00049315,120]
[322294454,1712939478883,-500.0,0.00049315,120]
[322294455,1712939478892,-508.57,0.00049315,120]
[322294456,1712939478901,-500.0,0.00049315,120]
[322294457,1712939478910,-561.65,0.00049315,120]
[322294458,1712939478920,-500.0,0.00049315,120]
[322294459,1712939478929,-500.0,0.00049315,120]
[322294460,1712939478938,-661.69,0.00049315,2]
[322294461,1712939478948,-500.0,0.00049315,120]
[322294462,1712939478957,-255.81044954,0.00049315,120]
[322294463,1712939478968,-500.0,0.00049315,120]
[322294464,1712939478977,-525.48,0.00049315,120]
[322294465,1712939478988,-500.0,0.00049315,120]
[322294466,1712939478997,-500.0,0.00049315,120]
[322294467,1712939479006,-579.42,0.00049315,120]
[322294468,1712939479015,-500.0,0.00049315,120]
[322294469,1712939479025,-500.0,0.00049315,120]
[322294470,1712939479034,-500.0,0.00049315,120]
[322294471,1712939479043,-500.0,0.00049315,120]
[322294472,1712939479053,-500.0,0.00049315,120]
[322294473,1712939479062,-500.0,0.00049315,120]
[322294474,1712939479072,-500.0,0.00049315,120]
[322294475,1712939479206,-718.46,0.00049315,120]
[322294476,1712939479216,-500.0,0.00049315,120]
[322294477,1712939479226,-500.0,0.00049315,120]
[322294478,1712939479235,-495.86534136,0.00049315,120]
[322294479,1712939479246,-500.0,0.00049315,120]
[322294480,1712939479255,-500.0,0.00049315,120]
[322294481,1712939479264,-500.0,0.00049315,120]
[322294482,1712939479274,-500.0,0.00049315,120]
[322294483,1712939479284,-500.0,0.00049315,120]
[322294484,1712939479293,-500.0,0.00049315,120]
[322294485,1712939479303,-500.0,0.00049315,120]
[322294486,1712939479312,-513.42,0.00049315,120]
[322294487,1712939479321,-252.47690583,0.00049315,120]
[322294488,1712939479339,-595.54,0.00049315,2]
[322294489,1712939479348,-586.75,0.00049315,120]
[322294490,1712939479359,-500.0,0.00049315,120]
[322294491,1712939479369,-500.0,0.00049315,120]
[322294492,1712939479380,-500.0,0.00049315,120]
[322294493,1712939479390,-460.84730439,0.00049315,120]
[322294494,1712939479401,-500.0,0.00049315,120]
[322294495,1712939479411,-500.0,0.00049315,120]
[322294496,1712939479421,-500.0,0.00049315,120]
[322294497,1712939479431,-500.0,0.00049315,120]
[322294498,1712939479440,-704.2,0.00049315,120]
[322294499,1712939479449,-3000.0,0.00049315,120]
[322294500,1712939479461,-546.18,0.00049315,120]
[322294501,1712939479470,-500.0,0.00049315,120]
[322294502,1712939479479,-500.0,0.00049315,120]
[322294503,1712939479490,-500.0,0.00049315,120]
[322294504,1712939479499,-1352.77,0.00049315,120]
[322294505,1712939479508,-673.18,0.00049315,120]
[322294506,1712939479517,-500.0,0.00049315,120]
[322294507,1712939479528,-500.0,0.00049315,120]
[322294508,1712939479537,-629.37,0.00049315,120]
[322294509,1712939479546,-500.0,0.00049315,120]
[322294510,1712939479556,-500.0,0.00049315,120]
[322294511,1712939479569,-500.0,0.00049315,120]
[322294512,1712939479579,-2203.64,0.00049315,120]
[322294513,1712939479588,-500.0,0.00049315,120]
[322294514,1712939479598,-1162.01,0.00049315,120]
[322294515,1712939479607,-2667.34,0.00049315,120]
[322294516,1712939479618,-716.23,0.00049315,120]
[322294517,1712939479627,-1151.02,0.00049315,120]
[322294518,1712939479637,-500.0,0.00049315,120]
[322294519,1712939479646,-597.82,0.00049315,120]
[322294520,1712939479656,-634.43,0.00049315,120]
[322294521,1712939479665,-1280.3,0.00049315,120]
[322294522,1712939479675,-500.0,0.00049315,120]
[322294523,1712939479685,-1116.79,0.00049315,120]
[322294524,1712939479694,-500.0,0.00049315,120]
[322294525,1712939479703,-500.0,0.00049315,120]
[322294526,1712939479713,-7302.32,0.00049315,120]
[322294527,1712939479722,-1813.94,0.00049315,120]
[322294528,1712939479731,-807.13,0.00049315,120]
[322294529,1712939479742,-500.0,0.00049315,120]
[322294530,1712939479752,-609.01,0.00049315,120]
[322294531,1712939479761,-519.31,0.00049315,120]
[322294532,1712939479770,-1010.89,0.00049315,120]
[322294533,1712939479779,-500.0,0.00049315,120]
[322294534,1712939479789,-500.0,0.00049315,120]
[322294535,1712939479799,-2090.34,0.00049315,120]
[322294536,1712939479809,-670.23,0.00049315,120]
[322294537,1712939479818,-520.06,0.00049315,120]
[322294538,1712939479828,-500.0,0.00049315,120]
[322294539,1712939479837,-500.0,0.00049315,120]
[322294540,1712939479846,-500.0,0.00049315,120]
[322294541,1712939479856,-568.18,0.00049315,120]
[322294542,1712939479866,-500.0,0.00049315,120]
[322294543,1712939479876,-500.0,0.00049315,120]
[322294544,1712939479885,-500.0,0.00049315,120]
[322294545,1712939479895,-500.0,0.00049315,120]
[322294546,1712939479905,-500.0,0.00049315,120]
[322294547,1712939479915,-500.0,0.00049315,120]
[322294548,1712939479925,-1311.53,0.00049315,120]
[322294549,1712939479934,-1628.88,0.00049315,120]
[322294550,1712939479944,-500.0,0.00049315,120]
[322294551,1712939479954,-515.58,0.00049315,120]
[322294552,1712939479964,-500.0,0.00049315,120]
[322294553,1712939479974,-14006.78,0.00049315,120]
[322294554,1712939479983,-500.0,0.00049315,120]
[322294555,1712939479996,-500.0,0.00049315,120]
[322294556,1712939480006,-500.0,0.00049315,120]
[322294557,1712939480015,-803.87,0.00049315,120]
[322294558,1712939480026,-500.0,0.00049315,120]
[322294559,1712939480035,-500.0,0.00049315,120]
[322294560,1712939480045,-500.0,0.00049315,120]
[322294561,1712939480055,-2680.68,0.00049315,120]
[322294562,1712939480065,-978.71,0.00049315,120]
[322294563,1712939480075,-156.40682177,0.00049315,120]
[322294564,1712939480084,-500.0,0.00049315,120]
[322294565,1712939480094,-2121.53,0.00049315,120]
[322294566,1712939480104,-500.0,0.00049315,120]
[322294567,1712939480114,-603.45,0.00049315,120]
[322294568,1712939480124,-1410.1,0.00049315,120]
[322294569,1712939480133,-2010.88,0.00049315,120]
[322294570,1712939480143,-500.0,0.00049315,120]
[322294571,1712939480153,-524.48,0.00049315,120]
[322294572,1712939480162,-500.0,0.00049315,120]
[322294573,1712939480171,-2625.88,0.00049315,120]
[322294574,1712939480181,-895.41,0.00049315,120]
[322294575,1712939480191,-500.0,0.00049315,120]
[322294576,1712939480200,-688.0,0.00049315,120]
[322294577,1712939480210,-2788.58,0.00049315,120]
[322294578,1712939480220,-1235.34,0.00049315,120]
[322294579,1712939480229,-665.73,0.00049315,120]
[322294580,1712939480240,-1020.56,0.00049315,120]
[322294581,1712939480250,-819.11,0.00049315,120]
[322294582,1712939480259,-565.07,0.00049315,120]
[322294583,1712939480269,-920.52,0.00049315,120]
[322294584,1712939480278,-500.0,0.00049315,120]
[322294585,1712939480288,-584.81,0.00049315,120]
[322294586,1712939480298,-1006.65,0.00049315,120]
[322294587,1712939480307,-6172.84,0.00049315,120]
[322294588,1712939480317,-502.19,0.00049315,120]
[322294589,1712939480327,-1224.43,0.00049315,120]
[322294590,1712939480337,-500.0,0.00049315,120]
[322294591,1712939480347,-701.12,0.00049315,120]
[322294592,1712939480356,-3794.47,0.00049315,120]
[322294593,1712939480366,-500.0,0.00049315,120]
[322294594,1712939480376,-795.66,0.00049315,120]
[322294595,1712939480385,-608.21,0.00049315,120]
[322294596,1712939480395,-938.69,0.00049315,120]
[322294597,1712939480405,-500.0,0.00049315,120]
[322294598,1712939480414,-1074.92,0.00049315,120]
[322294599,1712939480423,-705.22,0.00049315,120]
[322294600,1712939480433,-926.87,0.00049315,120]
[322294601,1712939480443,-291.50691745,0.00049315,120]
[322294602,1712939480452,-2317.31,0.00049315,120]
[322294603,1712939480461,-566.69,0.00049315,120]
[322294604,1712939480471,-550.45,0.00049315,120]
[322294605,1712939480481,-1028.71,0.00049315,120]
[322294606,1712939480492,-500.0,0.00049315,120]
[322294607,1712939480502,-1045.05,0.00049315,120]
[322294608,1712939480511,-500.0,0.00049315,120]
[322294609,1712939480520,-1536.84,0.00049315,120]
[322294610,1712939480536,-500.0,0.00049315,120]
[322294611,1712939480545,-500.0,0.00049315,120]
[322294612,1712939480555,-500.0,0.00049315,120]
[322294613,1712939480565,-1599.82,0.00049315,120]
[322294614,1712939480577,-886.03,0.00049315,120]
[322294615,1712939480586,-500.0,0.00049315,120]
[322294616,1712939480596,-593.38,0.00049315,21]
[322294617,1712939480606,-868.49,0.00049315,120]
[322294618,1712939480616,-995.51,0.00049315,120]
[322294619,1712939480626,-500.0,0.00049315,120]
[322294620,1712939480636,-753.01,0.00049315,120]
[322294621,1712939480646,-660.73,0.00049315,120]
[322294622,1712939480655,-500.0,0.00049315,120]
[322294623,1712939480665,-500.0,0.00049315,120]
[322294624,1712939480675,-2246.9,0.00049315,120]
[322294625,1712939480684,-1000.0,0.00049315,30]
[322294626,1712939480694,-1031.16817872,0.00049315,30]
[322294627,1712939480704,-151.0,0.00049315,120]
[322294628,1712939480713,-150.2,0.00049315,2]
[322294629,1712939480723,-1000.0,0.00049315,30]
[322294630,1712939480732,-1000.0,0.00049321,60]
[322294631,1712939480745,-500.0,0.00049321,30]
[322294632,1712939480754,-500.0,0.00049321,30]
[322294633,1712939480764,-8000.0,0.00049322,120]
[322294634,1712939480773,-150.0,0.00049326,30]
[322294635,1712939480783,-150.0,0.00049358,30]
[322294636,1712939480793,-150.0,0.00049358,30]
[322294637,1712939480802,-150.0,0.00049376,30]
[322294638,1712939480811,-150.0,0.0004939,30]
[322294639,1712939480821,-8000.0,0.00049408,120]
[322294640,1712939480830,-150.0,0.00049422,30]
[322294641,1712939480840,-150.0,0.00049438,30]
[322294642,1712939480849,-150.0,0.00049438,30]
[322294643,1712939480859,-3000.0,0.00049452,120]
[322294644,1712939480868,-150.0,0.00049454,30]
[322294645,1712939480877,-222.93566951,0.0004948,120]
[322294646,1712939480886,-150.0,0.00049486,30]
[322294647,1712939480896,-8000.0,0.00049494,120]
[322294648,1712939480905,-159.69255828,0.000495,10]
[322294649,1712939480915,-12373.23,0.000495,120]
[322294650,1712939480925,-150.0,0.000495,10]
[322294651,1712939480935,-150.0,0.00049501,30]
[322294652,1712939480946,-150.0,0.00049519,30]
[322294653,1712939480956,-150.0,0.00049519,30]
[322294654,1712939480966,-620.0,0.00049531,30]
[322294655,1712939480978,-297.0,0.00049531,30]
[322294656,1712939480988,-427.0,0.00049531,30]
[322294657,1712939481009,-150.0,0.00049551,30]
[322294658,1712939481020,-8000.0,0.0004958,120]
[322294659,1712939481031,-150.0,0.00049583,30]
[322294660,1712939481041,-164.89197738,0.00049587,120]
[322294661,1712939481051,-500.0,0.00049589,120]
[322294662,1712939481061,-500.0,0.00049589,120]
[322294663,1712939481071,-500.0,0.00049589,120]
[322294664,1712939481081,-508.57,0.00049589,120]
[322294665,1712939481091,-500.0,0.00049589,120]
[322294666,1712939481100,-561.65,0.00049589,120]
[322294667,1712939481110,-500.0,0.00049589,120]
[322294668,1712939481120,-661.69,0.00049589,2]
[322294669,1712939481129,-500.0,0.00049589,120]
[322294670,1712939481139,-500.0,0.00049589,120]
[322294671,1712939481148,-525.48,0.00049589,120]
[322294672,1712939481157,-500.0,0.00049589,120]
[322294673,1712939481167,-500.0,0.00049589,120]
[322294674,1712939481176,-579.42,0.00049589,120]
[322294675,1712939481186,-500.0,0.00049589,120]
[322294676,1712939481195,-500.0,0.00049589,120]
[322294677,1712939481205,-500.0,0.00049589,120]
[322294678,1712939481214,-500.0,0.00049589,120]
[322294679,1712939481224,-500.0,0.00049589,120]
[322294680,1712939481233,-500.0,0.00049589,120]
[322294681,1712939481249,-500.0,0.00049589,120]
[322294682,1712939481258,-718.46,0.00049589,120]
[322294683,1712939481267,-278.74396387,0.00049589,120]
[322294684,1712939481276,-315.11666468,0.00049589,120]
[322294685,1712939481285,-500.0,0.00049589,120]
[322294686,1712939481294,-500.0,0.00049589,120]
[322294687,1712939481303,-500.0,0.00049589,120]
[322294688,1712939481312,-500.0,0.00049589,120]
[322294689,1712939481321,-500.0,0.00049589,120]
[322294690,1712939481330,-313.76425975,0.00049589,120]
[322294691,1712939481339,-500.0,0.00049589,120]
[322294692,1712939481348,-513.42,0.00049589,120]
[322294693,1712939481357,-595.54,0.00049589,2]
[322294694,1712939481366,-586.75,0.00049589,120]
[322294695,1712939481376,-500.0,0.00049589,120]
[322294696,1712939481385,-500.0,0.00049589,120]
[322294697,1712939481397,-500.0,0.00049589,120]
[322294698,1712939481406,-500.0,0.00049589,120]
[322294699,1712939481415,-500.0,0.00049589,120]
[322294700,1712939481424,-500.0,0.00049589,120]
[322294701,1712939481434,-500.0,0.00049589,120]
[322294702,1712939481443,-704.2,0.00049589,120]
[322294703,1712939481452,-3000.0,0.00049589,120]
[322294704,1712939481461,-546.18,0.00049589,120]
[322294705,1712939481470,-500.0,0.00049589,120]
[322294706,1712939481480,-500.0,0.00049589,120]
[322294707,1712939481489,-500.0,0.00049589,120]
[322294708,1712939481502,-1352.77,0.00049589,120]
[322294709,1712939481512,-673.18,0.00049589,120]
[322294710,1712939481521,-500.0,0.00049589,120]
[322294711,1712939481539,-500.0,0.00049589,120]
[322294712,1712939481549,-629.37,0.00049589,120]
[322294713,1712939481559,-500.0,0.00049589,120]
[322294714,1712939481568,-500.0,0.00049589,120]
[322294715,1712939481579,-500.0,0.00049589,120]
[322294716,1712939481589,-2203.64,0.00049589,120]
[322294717,1712939481598,-500.0,0.00049589,120]
[322294718,1712939481608,-1162.01,0.00049589,120]
[322294719,1712939481735,-2667.34,0.00049589,120]
[322294720,1712939481761,-716.23,0.00049589,120]
[322294721,1712939481771,-1151.02,0.00049589,120]
[322294722,1712939481781,-500.0,0.00049589,120]
[322294723,1712939481791,-597.82,0.00049589,120]
[322294724,1712939481801,-634.43,0.00049589,120]
[322294725,1712939481811,-1280.3,0.00049589,120]
[322294726,1712939481820,-500.0,0.00049589,120]
[322294727,1712939481830,-1116.79,0.00049589,120]
[322294728,1712939481839,-500.0,0.00049589,120]
[322294729,1712939481849,-500.0,0.00049589,120]
[322294730,1712939481859,-7302.32,0.00049589,120]
[322294731,1712939481868,-1813.94,0.00049589,120]
[322294732,1712939481878,-807.13,0.00049589,120]
[322294733,1712939481887,-500.0,0.00049589,120]
[322294734,1712939481897,-609.01,0.00049589,120]
[322294735,1712939481906,-519.31,0.00049589,120]
[322294736,1712939481916,-1010.89,0.00049589,120]
[322294737,1712939481925,-500.0,0.00049589,120]
[322294738,1712939481935,-500.0,0.00049589,120]
[322294739,1712939481944,-2090.34,0.00049589,120]
[322294740,1712939481953,-670.23,0.00049589,120]
[322294741,1712939481963,-520.06,0.00049589,120]
[322294742,1712939481973,-500.0,0.00049589,120]
[322294743,1712939481981,-500.0,0.00049589,120]
[322294744,1712939481992,-500.0,0.00049589,120]
[322294745,1712939482001,-568.18,0.00049589,120]
[322294746,1712939482010,-500.0,0.00049589,120]
[322294747,1712939482020,-500.0,0.00049589,120]
[322294748,1712939482029,-500.0,0.00049589,120]
[322294749,1712939482039,-500.0,0.00049589,120]
[322294750,1712939482048,-500.0,0.00049589,120]
[322294751,1712939482057,-500.0,0.00049589,120]
[322294752,1712939482067,-1311.53,0.00049589,120]
[322294753,1712939482076,-1628.88,0.00049589,120]
[322294754,1712939482086,-500.0,0.00049589,120]
[322294755,1712939482095,-515.58,0.00049589,120]
[322294756,1712939482105,-500.0,0.00049589,120]
[322294757,1712939482115,-14006.78,0.00049589,120]
[322294758,1712939482124,-500.0,0.00049589,120]
[322294759,1712939482133,-500.0,0.00049589,120]
[322294760,1712939482143,-500.0,0.00049589,120]
[322294761,1712939482152,-803.87,0.00049589,120]
[322294762,1712939482162,-500.0,0.00049589,120]
[322294763,1712939482171,-640.67957175,0.00049589,120]
[322294764,1712939482180,-500.0,0.00049589,120]
[322294765,1712939482190,-2680.68,0.00049589,120]
[322294766,1712939482200,-978.71,0.00049589,120]
[322294767,1712939482209,-500.0,0.00049589,120]
[322294768,1712939482218,-2121.53,0.00049589,120]
[322294769,1712939482228,-500.0,0.00049589,120]
[322294770,1712939482237,-1410.1,0.00049589,120]
[322294771,1712939482251,-603.45,0.00049589,120]
[322294772,1712939482260,-2010.88,0.00049589,120]
[322294773,1712939482270,-500.0,0.00049589,120]
[322294774,1712939482279,-524.48,0.00049589,120]
[322294775,1712939482289,-500.0,0.00049589,120]
[322294776,1712939482298,-2625.88,0.00049589,120]
[322294777,1712939482308,-895.41,0.00049589,120]
[322294778,1712939482318,-473.25,0.00049589,120]
[322294779,1712939482328,-688.0,0.00049589,120]
[322294780,1712939482338,-2788.58,0.00049589,120]
[322294781,1712939482349,-1235.34,0.00049589,120]
[322294782,1712939482359,-665.73,0.00049589,120]
[322294783,1712939482369,-1020.56,0.00049589,120]
[322294784,1712939482380,-819.11,0.00049589,120]
[322294785,1712939482390,-565.07,0.00049589,120]
[322294786,1712939482399,-920.52,0.00049589,120]
[322294787,1712939482409,-500.0,0.00049589,120]
[322294788,1712939482419,-584.81,0.00049589,120]
[322294789,1712939482428,-1006.65,0.00049589,120]
[322294790,1712939482439,-6172.84,0.00049589,120]
[322294791,1712939482449,-502.19,0.00049589,120]
[322294792,1712939482459,-1224.43,0.00049589,120]
[322294793,1712939482469,-500.0,0.00049589,120]
[322294794,1712939482478,-701.12,0.00049589,120]
[322294795,1712939482488,-3794.47,0.00049589,120]
[322294796,1712939482500,-500.0,0.00049589,120]
[322294797,1712939482510,-795.66,0.00049589,120]
[322294798,1712939482520,-608.21,0.00049589,120]
[322294799,1712939482532,-938.69,0.00049589,120]
[322294800,1712939482542,-249.67,0.00049589,120]
[322294801,1712939482551,-1074.92,0.00049589,120]
[322294802,1712939482565,-705.22,0.00049589,120]
[322294803,1712939482574,-926.87,0.00049589,120]
[322294804,1712939482584,-2317.31,0.00049589,120]
[322294805,1712939482594,-566.69,0.00049589,120]
[322294806,1712939482603,-550.45,0.00049589,120]
[322294807,1712939482613,-1028.71,0.00049589,120]
[322294808,1712939482623,-500.0,0.00049589,120]
[322294809,1712939482633,-1045.05,0.00049589,120]
[322294810,1712939482643,-500.0,0.00049589,120]
[322294811,1712939482653,-1536.84,0.00049589,120]
[322294812,1712939482664,-500.0,0.00049589,120]
[322294813,1712939482676,-500.0,0.00049589,120]
[322294814,1712939482686,-500.0,0.00049589,120]
[322294815,1712939482696,-1599.82,0.00049589,120]
[322294816,1712939482706,-886.03,0.00049589,120]
[322294817,1712939482717,-500.0,0.00049589,120]
[322294818,1712939482727,-593.38,0.00049589,21]
[322294819,1712939482736,-868.49,0.00049589,120]
[322294820,1712939482748,-995.51,0.00049589,120]
[322294821,1712939482758,-500.0,0.00049589,120]
[322294822,1712939482768,-753.01,0.00049589,120]
[322294823,1712939482777,-660.73,0.00049589,120]
[322294824,1712939482786,-500.0,0.00049589,120]
[322294825,1712939482796,-500.0,0.00049589,120]
[322294826,1712939482806,-2246.9,0.00049589,120]
[322294827,1712939482816,-150.0,0.00049599,30]
[322294828,1712939482825,-150.0,0.00049615,30]
[322294829,1712939482835,-150.0,0.00049626,30]
[322294830,1712939482844,-150.0,0.00049647,30]
[322294831,1712939482856,-8000.0,0.00049666,120]
[322294832,1712939482865,-150.0,0.00049679,30]
[322294833,1712939482875,-150.0,0.00049679,30]
[322294834,1712939482884,-13750.76300433,0.0004968,120]
[322294835,1712939482894,-4027.64094232,0.00049696,120]
[322294836,1712939482904,-300.0,0.000497,7]
[322294837,1712939482913,-19889.08747552,0.000497,2]
[322294838,1712939482923,-502.91171092,0.000497,2]
[322294839,1712939482933,-156.3176798,0.000497,10]
[322294840,1712939482942,-150.0,0.00049711,30]
[322294841,1712939482952,-3000.0,0.00049726,120]
[322294842,1712939482961,-150.0,0.00049743,30]
[322294843,1712939482971,-150.0,0.0004975,30]
[322294844,1712939482981,-8000.0,0.00049752,120]
[322294845,1712939482994,-150.0,0.00049759,30]
[322294846,1712939483004,-1878.4712254,0.00049766,2]
[322294847,1712939483013,-62558.4177751,0.00049766,2]
[322294848,1712939483024,-4508.7918109,0.00049766,2]
[322294849,1712939483033,-500.0,0.0004977,3]
[322294850,1712939483044,-150.0,0.00049775,30]
[322294851,1712939483054,-3033783.58082227,0.000498,30]
[322294852,1712939483064,-151.0,0.000498,120]
[322294853,1712939483074,-151.0,0.000498,120]
[322294854,1712939483084,-151.0,0.000498,120]
[322294855,1712939483094,-182.030433,0.000498,120]
[322294856,1712939483103,-182.030433,0.000498,120]
[322294857,1712939483112,-151.0,0.000498,120]
[322294858,1712939483123,-151.0,0.000498,120]
[322294859,1712939483132,-151.0,0.000498,120]
[322294860,1712939483142,-151.0,0.000498,120]
[322294861,1712939483151,-151.0,0.000498,120]
[322294862,1712939483160,-151.0,0.000498,30]
[322294863,1712939483171,-151.0,0.000498,30]
[322294864,1712939483179,-225.671511,0.000498,120]
[322294865,1712939483188,-225.671511,0.000498,120]
[322294866,1712939483198,-155.00257,0.000498,120]
[322294867,1712939483207,-151.0,0.000498,14]
[322294868,1712939483218,-151.0,0.000498,120]
[322294869,1712939483227,-151.0,0.000498,120]
[322294870,1712939483236,-151.0,0.000498,120]
[322294871,1712939483248,-166.33754,0.000498,120]
[322294872,1712939483257,-179.281061,0.000498,120]
[322294873,1712939483266,-151.0,0.000498,120]
[322294874,1712939483275,-153.934131,0.000498,120]
[322294875,1712939483284,-151.0,0.000498,30]
[322294876,1712939483293,-151.0,0.000498,120]
[322294877,1712939483302,-151.0,0.000498,120]
[322294878,1712939483311,-151.0,0.000498,120]
[322294879,1712939483320,-151.0,0.000498,120]
[322294880,1712939483330,-151.0,0.000498,120]
[322294881,1712939483340,-613.416944,0.000498,45]
[322294882,1712939483349,-613.416944,0.000498,45]
[322294883,1712939483359,-151.0,0.000498,120]
[322294884,1712939483368,-153.443231,0.000498,120]
[322294885,1712939483377,-151.0,0.000498,120]
[322294886,1712939483387,-261.245183,0.000498,120]
[322294887,1712939483396,-151.0,0.000498,120]
[322294888,1712939483405,-151.0,0.000498,120]
[322294889,1712939483414,-151.0,0.000498,7]
[322294890,1712939483423,-151.0,0.000498,120]
[322294891,1712939483433,-570.52799,0.000498,120]
[322294892,1712939483442,-570.52799,0.000498,120]
[322294893,1712939483451,-151.0,0.000498,120]
[322294894,1712939483461,-151.0,0.000498,120]
[322294895,1712939483470,-151.0,0.000498,120]
[322294896,1712939483480,-290.209732,0.000498,120]
[322294897,1712939483489,-151.0,0.000498,120]
[322294898,1712939483501,-151.0,0.000498,120]
[322294899,1712939483511,-151.0,0.000498,120]
[322294900,1712939483521,-151.0,0.000498,120]
[322294901,1712939483532,-227.816751,0.000498,120]
[322294902,1712939483541,-151.0,0.000498,120]
[322294903,1712939483550,-151.0,0.000498,120]
[322294904,1712939483563,-151.0,0.000498,120]